[Event "*** SCC Grand Prix: Titled Tuesday Blitz"]
[Site "Chess.com"]
[Date "2020.09.08"]
[Round "6"]
[White "Kotofeyca"]
[Black "NikolaGry"]
[Result "0-1"]
[WhiteElo "2353"]
[BlackElo "2592"]
[TimeControl "180+1"]
[EndTime "11:06:09 PDT"]
[Termination "NikolaGry won by resignation"]

1. d4 {[%clk 0:03:00.9]} 1... g6 {[%clk 0:02:58.3]} 2. c4 {[%clk 0:03:00.2]}
2... Bg7 {[%clk 0:02:58.7]} 3. Nc3 {[%clk 0:02:58.9]} 3... c5 {[%clk 0:02:58.7]}
4. Nf3 {[%clk 0:02:58.4]} 4... cxd4 {[%clk 0:02:57]} 5. Nxd4 {[%clk 0:02:57.9]}
5... Nc6 {[%clk 0:02:56.9]} 6. e3 {[%clk 0:02:57.1]} 6... Nf6 {[%clk 0:02:53.7]}
7. Be2 {[%clk 0:02:56.3]} 7... O-O {[%clk 0:02:53.7]} 8. O-O {[%clk 0:02:55.9]}
8... d6 {[%clk 0:02:48.8]} 9. b3 {[%clk 0:02:50.9]} 9... Bd7 {[%clk 0:02:36.2]}
10. Bb2 {[%clk 0:02:50.7]} 10... a6 {[%clk 0:02:33.1]} 11. Rc1 {[%clk
0:02:43.2]} 11... Nxd4 {[%clk 0:02:26.5]} 12. Qxd4 {[%clk 0:02:36.3]} 12... Bc6
{[%clk 0:02:22.1]} 13. Rfd1 {[%clk 0:02:16.2]} 13... Rc8 {[%clk 0:02:06.2]} 14.
Qh4 {[%clk 0:02:07.2]} 14... Qa5 {[%clk 0:02:00.2]} 15. Rc2 {[%clk 0:01:59.6]}
15... b5 {[%clk 0:01:45.8]} 16. cxb5 {[%clk 0:01:38.9]} 16... Bxb5 {[%clk
0:01:34.3]} 17. Bxb5 {[%clk 0:01:23.2]} 17... axb5 {[%clk 0:01:33.8]} 18. Rdc1
{[%clk 0:01:22.9]} 18... b4 {[%clk 0:01:23.3]} 19. Na4 {[%clk 0:01:16.5]} 19...
Rxc2 {[%clk 0:01:17.5]} 20. Rxc2 {[%clk 0:01:17.4]} 20... Qf5 {[%clk 0:01:08.8]}
21. Qc4 {[%clk 0:01:13]} 21... d5 {[%clk 0:00:55.3]} 22. Qc7 {[%clk 0:01:07.4]}
22... h5 {[%clk 0:00:45.5]} 23. h3 {[%clk 0:01:07]} 23... g5 {[%clk 0:00:42.6]}
24. Bd4 {[%clk 0:01:03.4]} 24... g4 {[%clk 0:00:38.9]} 25. hxg4 {[%clk
0:01:03.2]} 25... hxg4 {[%clk 0:00:39.1]} 26. Qe5 {[%clk 0:00:56.9]} 26... Qxc2
{[%clk 0:00:38.3]} 0-1

[Event "*** SCC Grand Prix: Titled Tuesday Blitz"]
[Site "Chess.com"]
[Date "2020.09.08"]
[Round "6"]
[White "lacafi"]
[Black "Sofiia_Hryzlova"]
[Result "0-1"]
[WhiteElo "2154"]
[BlackElo "2283"]
[TimeControl "180+1"]
[EndTime "11:06:10 PDT"]
[Termination "Sofiia_Hryzlova won on time"]

1. d4 {[%clk 0:03:00.9]} 1... Nf6 {[%clk 0:02:57.9]} 2. Nf3 {[%clk 0:02:59.5]}
2... e6 {[%clk 0:02:58]} 3. e3 {[%clk 0:02:56.7]} 3... c5 {[%clk 0:02:56.9]} 4.
Bd3 {[%clk 0:02:56.8]} 4... d5 {[%clk 0:02:53.2]} 5. c3 {[%clk 0:02:56.7]} 5...
Nc6 {[%clk 0:02:52.6]} 6. Nbd2 {[%clk 0:02:57.1]} 6... Bd6 {[%clk 0:02:49.1]} 7.
Qe2 {[%clk 0:02:57.3]} 7... c4 {[%clk 0:02:47.3]} 8. Bc2 {[%clk 0:02:57.3]} 8...
b5 {[%clk 0:02:47]} 9. O-O {[%clk 0:02:54.8]} 9... Bb7 {[%clk 0:02:44.6]} 10. e4
{[%clk 0:02:55]} 10... dxe4 {[%clk 0:02:43.5]} 11. Nxe4 {[%clk 0:02:55.5]} 11...
Be7 {[%clk 0:02:38.3]} 12. Re1 {[%clk 0:02:51.9]} 12... O-O {[%clk 0:02:37.2]}
13. Neg5 {[%clk 0:02:46.8]} 13... h6 {[%clk 0:02:28.8]} 14. Nxe6 {[%clk
0:02:45.9]} 14... fxe6 {[%clk 0:02:28.6]} 15. Qxe6+ {[%clk 0:02:46.5]} 15... Kh8
{[%clk 0:02:25.8]} 16. Nh4 {[%clk 0:02:46.5]} 16... g5 {[%clk 0:01:55.2]} 17.
Ng6+ {[%clk 0:02:44.1]} 17... Kg7 {[%clk 0:01:55.3]} 18. Nxe7 {[%clk 0:01:13.4]}
18... Re8 {[%clk 0:01:46.8]} 19. Bxg5 {[%clk 0:00:32.5]} 19... Qxe7 {[%clk
0:01:28.8]} 20. Bxf6+ {[%clk 0:00:12.4]} 20... Qxf6 {[%clk 0:01:27]} 21. Qd7+
{[%clk 0:00:09.4]} 21... Qf7 {[%clk 0:01:20.1]} 22. Qg4+ {[%clk 0:00:07.6]}
22... Kh8 {[%clk 0:01:17.7]} 23. Bg6 {[%clk 0:00:06.5]} 23... Qg7 {[%clk
0:01:16.1]} 24. Qh5 {[%clk 0:00:02.8]} 24... Rg8 {[%clk 0:01:13]} 0-1

[Event "*** SCC Grand Prix: Titled Tuesday Blitz"]
[Site "Chess.com"]
[Date "2020.09.08"]
[Round "6"]
[White "Parhamov"]
[Black "Gloomy_Wanderer"]
[Result "1-0"]
[WhiteElo "2996"]
[BlackElo "2738"]
[TimeControl "180+1"]
[EndTime "11:06:15 PDT"]
[Termination "Parhamov won by resignation"]

1. c4 {[%clk 0:03:00.9]} 1... e5 {[%clk 0:02:59.8]} 2. g3 {[%clk 0:02:59]} 2...
Nc6 {[%clk 0:02:59.6]} 3. Bg2 {[%clk 0:02:58.7]} 3... f5 {[%clk 0:02:59.8]} 4.
Nc3 {[%clk 0:02:57.9]} 4... Nf6 {[%clk 0:02:59.9]} 5. d3 {[%clk 0:02:57.7]} 5...
Bb4 {[%clk 0:02:59.5]} 6. Bd2 {[%clk 0:02:57.5]} 6... O-O {[%clk 0:02:59.7]} 7.
Nd5 {[%clk 0:02:50]} 7... Bxd2+ {[%clk 0:02:59.6]} 8. Qxd2 {[%clk 0:02:50.3]}
8... d6 {[%clk 0:03:00.1]} 9. e3 {[%clk 0:02:50]} 9... Nxd5 {[%clk 0:02:57.6]}
10. cxd5 {[%clk 0:02:49.7]} 10... Ne7 {[%clk 0:02:56]} 11. Ne2 {[%clk
0:02:49.3]} 11... Kh8 {[%clk 0:02:52.4]} 12. O-O {[%clk 0:02:48]} 12... Ng8
{[%clk 0:02:52.6]} 13. f4 {[%clk 0:02:48.1]} 13... Qe7 {[%clk 0:02:52.3]} 14.
Rae1 {[%clk 0:02:45.3]} 14... Nf6 {[%clk 0:02:51.6]} 15. e4 {[%clk 0:02:42.2]}
15... fxe4 {[%clk 0:02:50.3]} 16. dxe4 {[%clk 0:02:42.3]} 16... Bd7 {[%clk
0:02:47.6]} 17. Nc3 {[%clk 0:02:40.2]} 17... Rae8 {[%clk 0:02:45.9]} 18. f5
{[%clk 0:02:38.3]} 18... Rd8 {[%clk 0:02:16.3]} 19. h3 {[%clk 0:02:37.9]} 19...
c6 {[%clk 0:02:15.9]} 20. g4 {[%clk 0:02:32.9]} 20... cxd5 {[%clk 0:02:15.5]}
21. g5 {[%clk 0:02:29.3]} 21... Nxe4 {[%clk 0:02:05.5]} 22. Bxe4 {[%clk
0:02:19.8]} 22... dxe4 {[%clk 0:02:04.7]} 23. Nd5 {[%clk 0:02:09.1]} 23... Qf7
{[%clk 0:01:56.5]} 24. g6 {[%clk 0:01:49.3]} 24... hxg6 {[%clk 0:01:42.3]} 25.
Qg5 {[%clk 0:01:47.2]} 25... Qxd5 {[%clk 0:00:17.3]} 26. fxg6 {[%clk 0:01:15.2]}
26... Qd4+ {[%clk 0:00:13.3]} 27. Kh1 {[%clk 0:01:15.1]} 27... Rf3 {[%clk
0:00:10.9]} 28. Qxd8+ {[%clk 0:01:13.9]} 1-0

[Event "*** SCC Grand Prix: Titled Tuesday Blitz"]
[Site "Chess.com"]
[Date "2020.09.08"]
[Round "6"]
[White "Smile2005"]
[Black "Sergey85Rodchenkov"]
[Result "1/2-1/2"]
[WhiteElo "2314"]
[BlackElo "2495"]
[TimeControl "180+1"]
[EndTime "11:06:25 PDT"]
[Termination "Game drawn by repetition"]

1. Nf3 {[%clk 0:03:00.8]} 1... Nf6 {[%clk 0:02:59.4]} 2. g3 {[%clk 0:03:01.7]}
2... b5 {[%clk 0:02:59.1]} 3. Bg2 {[%clk 0:03:02.6]} 3... Bb7 {[%clk 0:02:59.4]}
4. O-O {[%clk 0:03:03.5]} 4... e6 {[%clk 0:02:59.8]} 5. d3 {[%clk 0:03:04.4]}
5... d5 {[%clk 0:03:00]} 6. Nbd2 {[%clk 0:03:05.3]} 6... Be7 {[%clk 0:02:59.7]}
7. e4 {[%clk 0:03:05.8]} 7... dxe4 {[%clk 0:02:59.5]} 8. Ng5 {[%clk 0:03:06.2]}
8... Qc8 {[%clk 0:02:59.4]} 9. Ngxe4 {[%clk 0:03:06.4]} 9... O-O {[%clk
0:02:57.8]} 10. Nxf6+ {[%clk 0:03:06.1]} 10... Bxf6 {[%clk 0:02:57.5]} 11. Ne4
{[%clk 0:03:06.3]} 11... Be7 {[%clk 0:02:52.9]} 12. Qf3 {[%clk 0:03:05.9]} 12...
Nc6 {[%clk 0:02:47.5]} 13. Qh5 {[%clk 0:03:02.6]} 13... Nd4 {[%clk 0:02:39.5]}
14. c3 {[%clk 0:03:02]} 14... Nf5 {[%clk 0:02:34.8]} 15. d4 {[%clk 0:02:55.9]}
15... Bd5 {[%clk 0:02:12.1]} 16. Bg5 {[%clk 0:02:51.6]} 16... Qb7 {[%clk
0:02:02.3]} 17. Bxe7 {[%clk 0:02:51.3]} 17... Nxe7 {[%clk 0:02:01.7]} 18. Nc5
{[%clk 0:02:48.7]} 18... Qc6 {[%clk 0:02:01.7]} 19. Bxd5 {[%clk 0:02:48.4]}
19... Qxd5 {[%clk 0:02:01.3]} 20. Qxd5 {[%clk 0:02:48.4]} 20... Nxd5 {[%clk
0:02:01.3]} 21. Rfe1 {[%clk 0:02:48.5]} 21... a5 {[%clk 0:02:00.7]} 22. a4
{[%clk 0:02:47.6]} 22... Rfb8 {[%clk 0:01:56.1]} 23. axb5 {[%clk 0:02:38.1]}
23... a4 {[%clk 0:01:42.9]} 24. c4 {[%clk 0:02:37]} 24... Nb6 {[%clk 0:01:42.1]}
25. Rec1 {[%clk 0:02:34.7]} 25... Rd8 {[%clk 0:01:41.8]} 26. Na6 {[%clk
0:02:31.8]} 26... Rxd4 {[%clk 0:01:36.2]} 27. c5 {[%clk 0:02:31.9]} 27... Nd5
{[%clk 0:01:34.2]} 28. Nxc7 {[%clk 0:02:08.3]} 28... Nxc7 {[%clk 0:01:32.4]} 29.
b6 {[%clk 0:02:08.3]} 29... Nd5 {[%clk 0:01:22.2]} 30. b7 {[%clk 0:02:07.7]}
30... Rb8 {[%clk 0:01:21.4]} 31. c6 {[%clk 0:02:07.9]} 31... Nc7 {[%clk
0:01:20.7]} 32. Rd1 {[%clk 0:02:02.1]} 32... Rc4 {[%clk 0:00:55.5]} 33. Rd6
{[%clk 0:02:00.1]} 33... Kf8 {[%clk 0:00:38]} 34. Rad1 {[%clk 0:01:57.1]} 34...
Nd5 {[%clk 0:00:38.1]} 35. f4 {[%clk 0:01:34.2]} 35... g6 {[%clk 0:00:36.9]} 36.
g4 {[%clk 0:01:32.8]} 36... Ke7 {[%clk 0:00:34.9]} 37. Rd7+ {[%clk 0:01:32.4]}
37... Ke8 {[%clk 0:00:35.1]} 38. Rd6 {[%clk 0:01:30.4]} 38... Ke7 {[%clk
0:00:20.9]} 39. Rd7+ {[%clk 0:01:30.1]} 39... Ke8 {[%clk 0:00:21.1]} 40. Rd6
{[%clk 0:01:30.4]} 40... Ke7 {[%clk 0:00:21.3]} 1/2-1/2

[Event "*** SCC Grand Prix: Titled Tuesday Blitz"]
[Site "Chess.com"]
[Date "2020.09.08"]
[Round "6"]
[White "talyamania"]
[Black "Sacbutt"]
[Result "1-0"]
[WhiteElo "2342"]
[BlackElo "2213"]
[TimeControl "180+1"]
[EndTime "11:06:26 PDT"]
[Termination "talyamania won by resignation"]

1. e4 {[%clk 0:03:00.9]} 1... d5 {[%clk 0:02:59]} 2. exd5 {[%clk 0:03:00.6]}
2... Qxd5 {[%clk 0:02:59.1]} 3. Nc3 {[%clk 0:03:01.1]} 3... Qd6 {[%clk
0:02:59.3]} 4. d4 {[%clk 0:03:01.4]} 4... Nf6 {[%clk 0:02:59.8]} 5. Nf3 {[%clk
0:03:01.5]} 5... c6 {[%clk 0:03:00.3]} 6. Ne5 {[%clk 0:02:59.2]} 6... Nbd7
{[%clk 0:03:00.3]} 7. Nc4 {[%clk 0:02:52.6]} 7... Qc7 {[%clk 0:03:00.5]} 8. g3
{[%clk 0:02:46.9]} 8... Nb6 {[%clk 0:02:59.5]} 9. Ne5 {[%clk 0:02:45.4]} 9...
Nbd7 {[%clk 0:02:59.4]} 10. Bf4 {[%clk 0:02:44.1]} 10... Qd8 {[%clk 0:02:45.8]}
11. Bg2 {[%clk 0:02:40.7]} 11... e6 {[%clk 0:02:44]} 12. O-O {[%clk 0:02:39.8]}
12... Be7 {[%clk 0:02:44]} 13. Re1 {[%clk 0:02:39.4]} 13... O-O {[%clk
0:02:43.5]} 14. Qe2 {[%clk 0:02:32.9]} 14... Nb6 {[%clk 0:02:38]} 15. Rad1
{[%clk 0:02:30.9]} 15... Nbd5 {[%clk 0:02:33.6]} 16. Bd2 {[%clk 0:02:25.5]}
16... Nxc3 {[%clk 0:02:30.3]} 17. Bxc3 {[%clk 0:02:25.2]} 17... Qc7 {[%clk
0:02:19.6]} 18. b3 {[%clk 0:02:14.2]} 18... a5 {[%clk 0:02:13.5]} 19. a4 {[%clk
0:02:13.6]} 19... c5 {[%clk 0:01:58.5]} 20. Bb2 {[%clk 0:02:01]} 20... cxd4
{[%clk 0:01:55.3]} 21. Rxd4 {[%clk 0:01:56.5]} 21... Ra6 {[%clk 0:01:46.1]} 22.
Red1 {[%clk 0:01:50.4]} 22... Rd6 {[%clk 0:01:33]} 23. Nc4 {[%clk 0:01:38]}
23... Rxd4 {[%clk 0:01:28.3]} 24. Bxd4 {[%clk 0:01:37.7]} 24... Bc5 {[%clk
0:00:58.3]} 25. Be5 {[%clk 0:01:23.1]} 25... Qe7 {[%clk 0:00:51.5]} 26. h3
{[%clk 0:01:03.7]} 26... b6 {[%clk 0:00:49.4]} 27. Bd6 {[%clk 0:00:50.7]} 27...
Bxd6 {[%clk 0:00:48]} 28. Rxd6 {[%clk 0:00:50.4]} 28... Ba6 {[%clk 0:00:35.6]}
29. Rxb6 {[%clk 0:00:46]} 29... Ra8 {[%clk 0:00:31.8]} 30. Bxa8 {[%clk
0:00:41.9]} 1-0

[Event "*** SCC Grand Prix: Titled Tuesday Blitz"]
[Site "Chess.com"]
[Date "2020.09.08"]
[Round "6"]
[White "chessmadara"]
[Black "zajka-molotok"]
[Result "0-1"]
[WhiteElo "1894"]
[BlackElo "2380"]
[TimeControl "180+1"]
[EndTime "11:06:28 PDT"]
[Termination "zajka-molotok won by checkmate"]

1. e4 {[%clk 0:03:00.9]} 1... Nc6 {[%clk 0:02:58.1]} 2. Nf3 {[%clk 0:02:59.3]}
2... d6 {[%clk 0:02:58]} 3. d4 {[%clk 0:02:56.2]} 3... Bg4 {[%clk 0:02:56.8]} 4.
Be2 {[%clk 0:02:54.7]} 4... Nf6 {[%clk 0:02:56.1]} 5. Nc3 {[%clk 0:02:52.7]}
5... e5 {[%clk 0:02:55.4]} 6. Be3 {[%clk 0:02:51.6]} 6... Be7 {[%clk 0:02:52.9]}
7. Qd2 {[%clk 0:02:51.6]} 7... a6 {[%clk 0:02:46.3]} 8. h3 {[%clk 0:02:50.5]}
8... Bxf3 {[%clk 0:02:45.6]} 9. Bxf3 {[%clk 0:02:49.8]} 9... b5 {[%clk
0:02:41.9]} 10. g4 {[%clk 0:02:40.1]} 10... b4 {[%clk 0:02:40.5]} 11. Ne2 {[%clk
0:02:39.5]} 11... a5 {[%clk 0:02:38.9]} 12. Ng3 {[%clk 0:02:37.4]} 12... exd4
{[%clk 0:02:35]} 13. Bxd4 {[%clk 0:02:38.3]} 13... Nxd4 {[%clk 0:02:35]} 14.
Qxd4 {[%clk 0:02:39.2]} 14... c5 {[%clk 0:02:33.8]} 15. Qd2 {[%clk 0:02:32.6]}
15... Rb8 {[%clk 0:02:18.9]} 16. Nf5 {[%clk 0:02:18.4]} 16... O-O {[%clk
0:02:09.4]} 17. h4 {[%clk 0:02:15.4]} 17... Nd7 {[%clk 0:02:05.6]} 18. O-O-O
{[%clk 0:02:03.4]} 18... Ne5 {[%clk 0:02:02.2]} 19. Be2 {[%clk 0:02:03.6]} 19...
c4 {[%clk 0:01:57.9]} 20. f4 {[%clk 0:02:01.4]} 20... c3 {[%clk 0:01:57.2]} 21.
bxc3 {[%clk 0:01:51.9]} 21... Ng6 {[%clk 0:01:44.2]} 22. h5 {[%clk 0:01:44.9]}
22... Nxf4 {[%clk 0:01:41.3]} 23. Nxe7+ {[%clk 0:01:34.1]} 23... Qxe7 {[%clk
0:01:42.2]} 24. Qxf4 {[%clk 0:01:34.3]} 24... bxc3 {[%clk 0:01:42]} 25. Bc4
{[%clk 0:01:31]} 25... d5 {[%clk 0:01:38.7]} 26. Rxd5 {[%clk 0:00:31.8]} 26...
Qa3+ {[%clk 0:01:36.6]} 27. Kd1 {[%clk 0:00:32.3]} 27... Rb1+ {[%clk 0:01:35.5]}
28. Ke2 {[%clk 0:00:32.9]} 28... Rxh1 {[%clk 0:01:35.1]} 29. h6 {[%clk
0:00:21.3]} 29... Rxh6 {[%clk 0:01:31.8]} 30. g5 {[%clk 0:00:21.1]} 30... Rc6
{[%clk 0:01:25.2]} 31. Bd3 {[%clk 0:00:16.9]} 31... Qe7 {[%clk 0:01:21.1]} 32.
Qh4 {[%clk 0:00:16.2]} 32... g6 {[%clk 0:01:19.6]} 33. Qf4 {[%clk 0:00:14.3]}
33... Re6 {[%clk 0:01:18]} 34. e5 {[%clk 0:00:13.7]} 34... Re8 {[%clk
0:01:17.3]} 35. Kd1 {[%clk 0:00:12.7]} 35... Rxe5 {[%clk 0:01:16.8]} 36. Rd4
{[%clk 0:00:12]} 36... Re1# {[%clk 0:01:15.8]} 0-1

[Event "*** SCC Grand Prix: Titled Tuesday Blitz"]
[Site "Chess.com"]
[Date "2020.09.08"]
[Round "6"]
[White "AsaHoffmann"]
[Black "teacher4chess"]
[Result "1-0"]
[WhiteElo "2401"]
[BlackElo "2101"]
[TimeControl "180+1"]
[EndTime "11:06:30 PDT"]
[Termination "AsaHoffmann won by resignation"]

1. d4 {[%clk 0:02:56.7]} 1... d5 {[%clk 0:02:58.9]} 2. Bg5 {[%clk 0:02:55.5]}
2... c5 {[%clk 0:02:56.4]} 3. dxc5 {[%clk 0:02:53]} 3... Nc6 {[%clk 0:02:52.8]}
4. c3 {[%clk 0:02:50.6]} 4... f6 {[%clk 0:02:44.9]} 5. Bh4 {[%clk 0:02:49.4]}
5... e5 {[%clk 0:02:43.9]} 6. e3 {[%clk 0:02:46.4]} 6... Bxc5 {[%clk 0:02:37.4]}
7. Nf3 {[%clk 0:02:45.5]} 7... Nge7 {[%clk 0:02:35.2]} 8. Nbd2 {[%clk
0:02:42.6]} 8... Bg4 {[%clk 0:02:28.8]} 9. Be2 {[%clk 0:02:41.8]} 9... e4 {[%clk
0:02:11]} 10. Nd4 {[%clk 0:02:39.8]} 10... Bxe2 {[%clk 0:02:10.9]} 11. Qxe2
{[%clk 0:02:38.3]} 11... Bxd4 {[%clk 0:02:05.2]} 12. exd4 {[%clk 0:02:35.2]}
12... Nf5 {[%clk 0:02:05.2]} 13. Bg3 {[%clk 0:02:32.1]} 13... O-O {[%clk
0:01:59.2]} 14. O-O {[%clk 0:02:26.7]} 14... Re8 {[%clk 0:01:53.7]} 15. Rfe1
{[%clk 0:02:20.3]} 15... e3 {[%clk 0:01:49.3]} 16. Nf3 {[%clk 0:02:12.5]} 16...
exf2+ {[%clk 0:01:28.5]} 17. Qxf2 {[%clk 0:02:11.7]} 17... Nxg3 {[%clk
0:01:27.4]} 18. Qxg3 {[%clk 0:02:10.6]} 18... Qb6 {[%clk 0:01:24.8]} 19. b3
{[%clk 0:02:05.7]} 19... Ne7 {[%clk 0:01:22.2]} 20. Nh4 {[%clk 0:02:04.5]} 20...
Rac8 {[%clk 0:01:18.4]} 21. Re3 {[%clk 0:02:03]} 21... g5 {[%clk 0:01:11.3]} 22.
Rae1 {[%clk 0:02:01]} 22... Kf7 {[%clk 0:01:10.6]} 23. Qg4 {[%clk 0:01:37.9]}
23... gxh4 {[%clk 0:01:07.1]} 24. Qh5+ {[%clk 0:01:37.1]} 24... Ng6 {[%clk
0:00:26]} 25. Qxh7+ {[%clk 0:01:35.5]} 25... Kf8 {[%clk 0:00:26.1]} 26. Qxg6
{[%clk 0:01:31.7]} 26... Rxe3 {[%clk 0:00:25.2]} 27. Rxe3 {[%clk 0:01:31.1]}
27... Qd6 {[%clk 0:00:20.1]} 28. Qh6+ {[%clk 0:01:25.6]} 28... Kf7 {[%clk
0:00:19.2]} 29. Qh7+ {[%clk 0:01:23.3]} 29... Kf8 {[%clk 0:00:18.5]} 30. Qh8+
{[%clk 0:01:21.9]} 30... Kf7 {[%clk 0:00:18.9]} 31. Qxc8 {[%clk 0:01:20.9]}
31... Qf4 {[%clk 0:00:18.9]} 32. Qe6+ {[%clk 0:01:19.5]} 32... Kg6 {[%clk
0:00:18.6]} 33. h3 {[%clk 0:01:16.9]} 33... Kg5 {[%clk 0:00:14.5]} 34. Qg4+
{[%clk 0:01:15.8]} 34... Qxg4 {[%clk 0:00:14.3]} 35. hxg4 {[%clk 0:01:15.7]} 1-0

[Event "*** SCC Grand Prix: Titled Tuesday Blitz"]
[Site "Chess.com"]
[Date "2020.09.08"]
[Round "6"]
[White "WinstonSilvakov"]
[Black "Matols"]
[Result "0-1"]
[WhiteElo "2130"]
[BlackElo "2263"]
[TimeControl "180+1"]
[EndTime "11:06:31 PDT"]
[Termination "Matols won by resignation"]

1. d4 {[%clk 0:03:00.9]} 1... Nf6 {[%clk 0:02:59.1]} 2. e3 {[%clk 0:03:01.3]}
2... e6 {[%clk 0:02:59]} 3. Bd3 {[%clk 0:03:00.9]} 3... b6 {[%clk 0:02:58.1]} 4.
f4 {[%clk 0:02:59.3]} 4... Bb7 {[%clk 0:02:56.8]} 5. Nf3 {[%clk 0:02:59.5]} 5...
d5 {[%clk 0:02:54.9]} 6. Nbd2 {[%clk 0:02:59.9]} 6... Be7 {[%clk 0:02:52.1]} 7.
O-O {[%clk 0:03:00.2]} 7... O-O {[%clk 0:02:51.6]} 8. Ne5 {[%clk 0:03:00.6]}
8... Nbd7 {[%clk 0:02:50.3]} 9. Qf3 {[%clk 0:02:58.7]} 9... c5 {[%clk
0:02:45.7]} 10. c3 {[%clk 0:02:58.6]} 10... Rc8 {[%clk 0:02:39.8]} 11. g4 {[%clk
0:02:53.4]} 11... Qc7 {[%clk 0:02:17]} 12. g5 {[%clk 0:02:52.9]} 12... Nxe5
{[%clk 0:02:04.1]} 13. fxe5 {[%clk 0:02:50.5]} 13... Ne4 {[%clk 0:02:02.4]} 14.
Nxe4 {[%clk 0:02:44.9]} 14... dxe4 {[%clk 0:02:02.1]} 15. Bxe4 {[%clk
0:02:45.8]} 15... Bxe4 {[%clk 0:02:02]} 16. Qxe4 {[%clk 0:02:45.4]} 16... Bxg5
{[%clk 0:02:01.1]} 17. Kh1 {[%clk 0:02:42.2]} 17... Qc6 {[%clk 0:01:57.8]} 18.
Qxc6 {[%clk 0:02:40.7]} 18... Rxc6 {[%clk 0:01:57.4]} 19. Rg1 {[%clk 0:02:41.6]}
19... Bh6 {[%clk 0:01:52.1]} 20. e4 {[%clk 0:02:38.6]} 20... Bxc1 {[%clk
0:01:49.7]} 21. Raxc1 {[%clk 0:02:39.5]} 21... cxd4 {[%clk 0:01:43.1]} 22. cxd4
{[%clk 0:02:38.8]} 22... Rfc8 {[%clk 0:01:42.9]} 23. Rxc6 {[%clk 0:02:36.7]}
23... Rxc6 {[%clk 0:01:42.9]} 24. d5 {[%clk 0:02:37.2]} 24... exd5 {[%clk
0:01:42.1]} 25. exd5 {[%clk 0:02:37.6]} 25... Rc5 {[%clk 0:01:37.3]} 26. Rd1
{[%clk 0:02:38]} 26... Kf8 {[%clk 0:01:35]} 27. Kg2 {[%clk 0:02:31.2]} 27... Ke7
{[%clk 0:01:29.4]} 28. Rd2 {[%clk 0:02:29]} 28... f6 {[%clk 0:01:23.3]} 29. e6
{[%clk 0:02:27]} 29... Kd6 {[%clk 0:01:22]} 30. Kf3 {[%clk 0:02:27.4]} 30... Rc1
{[%clk 0:01:16]} 31. Re2 {[%clk 0:02:20.8]} 31... Rc7 {[%clk 0:01:01.6]} 32. Ke4
{[%clk 0:02:18.2]} 32... g6 {[%clk 0:00:58.8]} 33. Kd4 {[%clk 0:02:16]} 33... f5
{[%clk 0:00:58.9]} 34. a4 {[%clk 0:02:06]} 34... a6 {[%clk 0:00:53.5]} 35. b3
{[%clk 0:02:04.5]} 35... b5 {[%clk 0:00:52.8]} 36. h4 {[%clk 0:01:59.7]} 36...
h6 {[%clk 0:00:47.8]} 37. h5 {[%clk 0:01:55]} 37... g5 {[%clk 0:00:45.8]} 38.
Rf2 {[%clk 0:01:55.5]} 38... f4 {[%clk 0:00:45]} 39. Ke4 {[%clk 0:01:53.4]}
39... Rc1 {[%clk 0:00:42.4]} 40. Rd2 {[%clk 0:01:49.6]} 40... Re1+ {[%clk
0:00:41.4]} 41. Kf5 {[%clk 0:01:49.9]} 41... Re5+ {[%clk 0:00:34.1]} 42. Kf6
{[%clk 0:01:49.7]} 42... g4 {[%clk 0:00:30.6]} 43. Kg6 {[%clk 0:01:45.6]} 43...
f3 {[%clk 0:00:29.2]} 44. Kxh6 {[%clk 0:01:41.7]} 44... g3 {[%clk 0:00:28.9]}
45. e7 {[%clk 0:01:30.7]} 45... Rxe7 {[%clk 0:00:28]} 46. Kg5 {[%clk 0:01:29.8]}
46... f2 {[%clk 0:00:26.8]} 0-1

[Event "*** SCC Grand Prix: Titled Tuesday Blitz"]
[Site "Chess.com"]
[Date "2020.09.08"]
[Round "6"]
[White "Zhani-Z"]
[Black "KaterynaLagno"]
[Result "0-1"]
[WhiteElo "2500"]
[BlackElo "2698"]
[TimeControl "180+1"]
[EndTime "11:06:32 PDT"]
[Termination "KaterynaLagno won by resignation"]

1. e4 {[%clk 0:03:00.9]} 1... e5 {[%clk 0:03:00.1]} 2. Nf3 {[%clk 0:02:59.6]}
2... Nc6 {[%clk 0:03:00.6]} 3. Nc3 {[%clk 0:02:59.3]} 3... Nf6 {[%clk
0:02:59.7]} 4. Bb5 {[%clk 0:02:59.2]} 4... Nd4 {[%clk 0:02:57.2]} 5. Bc4 {[%clk
0:02:58.3]} 5... Bc5 {[%clk 0:02:57]} 6. d3 {[%clk 0:02:51.7]} 6... Nxf3+ {[%clk
0:02:48.2]} 7. Qxf3 {[%clk 0:02:50.1]} 7... O-O {[%clk 0:02:41.1]} 8. Bg5 {[%clk
0:02:45]} 8... Be7 {[%clk 0:02:39.4]} 9. O-O {[%clk 0:02:26.7]} 9... c6 {[%clk
0:02:36.9]} 10. a4 {[%clk 0:02:23.1]} 10... h6 {[%clk 0:02:33.6]} 11. Bh4 {[%clk
0:02:22.8]} 11... g5 {[%clk 0:02:19.4]} 12. Bg3 {[%clk 0:02:21.5]} 12... d5
{[%clk 0:02:16.7]} 13. exd5 {[%clk 0:02:15.3]} 13... Bg4 {[%clk 0:02:16.1]} 14.
Qe3 {[%clk 0:02:07.9]} 14... cxd5 {[%clk 0:02:15.9]} 15. Nxd5 {[%clk 0:01:31.9]}
15... Nxd5 {[%clk 0:02:15]} 16. Qe4 {[%clk 0:01:32.1]} 16... Be6 {[%clk
0:02:10.3]} 17. Bxe5 {[%clk 0:01:29.8]} 17... Bf6 {[%clk 0:02:06.3]} 18. Rae1
{[%clk 0:01:24.1]} 18... Rc8 {[%clk 0:02:04]} 19. h4 {[%clk 0:01:22.5]} 19...
Bxe5 {[%clk 0:01:56.5]} 20. Qxe5 {[%clk 0:01:22.3]} 20... Nf4 {[%clk 0:01:54.9]}
21. Bxe6 {[%clk 0:00:44.1]} 21... Nxe6 {[%clk 0:01:53.8]} 22. c3 {[%clk
0:00:38.7]} 22... Qxd3 {[%clk 0:01:50.6]} 23. Re3 {[%clk 0:00:38]} 23... Qg6
{[%clk 0:01:46.2]} 24. Rfe1 {[%clk 0:00:35.8]} 24... gxh4 {[%clk 0:01:38.6]} 25.
Qh2 {[%clk 0:00:31]} 25... Rc4 {[%clk 0:01:34.3]} 26. Rh3 {[%clk 0:00:14.9]}
26... Ng5 {[%clk 0:01:24.7]} 27. Rhe3 {[%clk 0:00:12.7]} 27... Kh7 {[%clk
0:01:22.9]} 28. Kh1 {[%clk 0:00:13]} 28... Rg8 {[%clk 0:01:21.6]} 29. Re7 {[%clk
0:00:12.9]} 29... Rg4 {[%clk 0:01:18.2]} 30. f3 {[%clk 0:00:11.7]} 30... Rg3
{[%clk 0:01:11.3]} 31. Qxh4 {[%clk 0:00:09.1]} 31... Nxf3 {[%clk 0:01:11.1]} 32.
gxf3 {[%clk 0:00:08]} 32... Rg1+ {[%clk 0:01:10.5]} 0-1